Cogmind - Beta 17.1 @@@ ROGUE MODE // 2026.09.09 @ 22:54:20 Player: SunShine214 Result: Destroyed by S-27 Virus with Autogun Performance ------------- Evolutions (4) 2000 Regions Visited (4) 800 Robots Destroyed (12) 60 Value Destroyed (209) 209 Prototype IDs (2) 40 Alien Tech Used (0) 0 Bonus (800) 800 TOTAL SCORE: 3909 Bonus ------- Registered with UFD 300 Met Optimus in HQ 500 Cogmind --------- Core Integrity 0/850 Matter 230/300 Energy 99/100 System Corruption 0% Temperature Cool (0) Movement Core (50) Location -6/Factory Parts ------- > --- POWER (1) -------- (None) > --- PROPULSION (5) --- (None) > --- UTILITY (7) ------ Hacking Suite > --- WEAPON (2) ------- (None) > --- INVENTORY (5) ---- Scrap Suit Cooled Plasma Cannon Large Botcube Peak State ------------ > --- POWER ------------ Ion Engine > --- PROPULSION ------- Light Treads Light Treads Light Treads > --- UTILITY ---------- Large Storage Unit Seismic Detector Improved Light Armor Plating Hacking Suite Hacking Suite > --- WEAPON ----------- Cooled Plasma Cannon Light Assault Rifle > --- INVENTORY -------- Ion Engine Scrap Suit Heavy Particle Cannon Assault Cannon CPS Tube CPS Tube CPS Tube Power Sword Large Botcube [Rating: 27] Favorites ----------- Power Ion Engine Engine Ion Engine Propulsion Light Treads Treads Light Treads Utility Seismic Detector Device Seismic Detector Storage Small Storage Unit Hackware Hacking Suite Protection Improved Light Armor Plating Weapon Light Assault Rifle Energy Gun EM Pulse Gun Energy Cannon Cooled Plasma Cannon Ballistic Gun Light Assault Rifle Special Weapon Mining Laser Build | -11 -10 -10 -8 -6 ------- Run | Yrd Mat Sub Scr Fac Slots Evolved 8 | . . . . 8 Power . | . . . . . Propulsion 3 | . . . . 3 Utility 5 | . . . . 5 Weapon . | . . . . . Parts Attached 16 | 8 . 1 1 6 Power 1 | 1 . . . . Engine 1 | 1 . . . . Core . | . . . . . Reactor . | . . . . . Propulsion 3 | 2 . . . 1 Treads 3 | 2 . . . 1 Leg . | . . . . . Wheel . | . . . . . Hover . | . . . . . Flight . | . . . . . Utility 6 | 2 . . 1 3 Device 1 | 1 . . . . Storage 2 | 1 . . 1 . Processor . | . . . . . Hackware 2 | . . . . 2 Protection 1 | . . . . 1 Artifact . | . . . . . Weapon 6 | 3 . 1 . 2 Energy Gun 2 | 2 . . . . Energy Cannon 1 | . . . . 1 Ballistic Gun 1 | 1 . . . . Ballistic Cannon . | . . . . . Launcher . | . . . . . Special Weapon 2 | . . 1 . 1 Impact Weapon . | . . . . . Slashing Weapon . | . . . . . Piercing Weapon . | . . . . . Special Melee Weapon . | . . . . . Unidentified Prototypes 1 | . . . . 1 Corrupted Parts 1 | 1 . . . . System Corruption 1 | 1 . . . . Parts Lost 4 | . . . . 4 Power . | . . . . . Propulsion . | . . . . . Utility 3 | . . . . 3 Weapon 1 | . . . . 1 Highest Loss Streak 4 | . . . . 4 To Critical Strikes . | . . . . . Average Backups 7 | . 2 6 10 6 Power . | . . 1 1 . Propulsion . | . . 1 1 . Utility 2 | . . 2 3 1 Weapon 2 | . 1 2 3 2 Tool/Special . | . . . . . Unused Backups 11 | . 2 . 2 7 Power 1 | . . . . 1 Propulsion . | . . . . . Utility 1 | . . . . 1 Weapon 7 | . 2 . 2 3 Tool/Special 2 | . . . . 2 Average Slot Usage (%) 95 | . 100 100 100 57 Engine 12 | . 14 14 14 4 Treads 26 | . 28 28 28 15 Device 12 | . 14 14 14 4 Storage 12 | . 14 14 14 4 Hackware 1 | . . . . 11 Energy Gun 12 | . 14 13 14 . Ballistic Gun 12 | . 14 14 14 4 Peak Build Rating 27 | 7 8 8 13 27 Average Rating 10 | 4 7 8 10 21 On Entrance 7 | . 7 8 8 13 Avg Prop Armor Cover (%) . | . . . . . Naked Turns . | . . . . . Heaviest Build 38 | 14 14 14 29 38 Greatest Support 60 | 40 40 40 40 60 Greatest Overweight (x) . | . . . . . Average Overweight (x) . | . . . . . Largest Inventory Capacity 15 | 8 8 8 15 15 Average Capacity 10 | 7 8 8 12 12 Most Carried 15 | 1 6 6 15 14 Average Carried 8 | . 2 6 11 9 Final Capacity 15 | 8 8 8 15 5 Final Carried 15 | 1 6 6 15 5 Class Distribution -------------------- 91% | Mutant 8% | Hacker-Mutant Dominant Class ---------------- Mutant | -10/Materials Mutant | -10/Subcaves Mutant | -8/Scraptown Hacker-Mutant | -6/Factory Resources | -11 -10 -10 -8 -6 ----------- Run | Yrd Mat Sub Scr Fac Matter Collected 324 | 257 31 22 10 4 Remotely . | . . . . . Salvage Created 378 | 84 294 . . . Parts 27 | 5 22 . . . Haulers Intercepted 1 | . 1 . . . Recyclers Shooed 2 | 1 1 . . . Parts Field Recycled . | . . . . . Retrieved Matter . | . . . . . Parts Self-Destructed 6 | . . 6 . . Prevented . | . . . . . Parts Restored . | . . . . . Kills | -11 -10 -10 -8 -6 ------- Run | Yrd Mat Sub Scr Fac Combat Hostiles Destroyed 4 | . 4 . . . Guns 4 | . 4 . . . Classes Destroyed 7 | 2 5 . . . Builder 2 | . 2 . . . Tunneler 1 | 1 . . . . Hauler 1 | . 1 . . . Recycler 1 | 1 . . . . Operator 2 | . 2 . . . Watcher 1 | . 1 . . . Grunt 4 | . 4 . . . Best Kill Streak 4 | 2 4 . . . Combat Bots Only 4 | . 4 . . . Max Kills in Single Turn 2 | 1 2 . . . Gunslinging . | . . . . . Exploded . | . . . . . Melee . | . . . . . Uniques/NPCs Destroyed . | . . . . . Combat | -11 -10 -10 -8 -6 -------- Run | Yrd Mat Sub Scr Fac Hostile Shots Fired 137 | . 16 . 4 117 Missed 51 | . 5 . 2 44 Hits 86 | . 11 . 2 73 Melee 1 | . . . . 1 Projectile 85 | . 11 . 2 72 Damage Taken 1451 | . 172 . 33 1246 Core 894 | . 11 . 25 858 Absorbed by Shields . | . . . . . Core Remaining (%) 92 | 100 . . 85 . Volleys Fired 26 | 4 16 2 . 4 Largest 2 | 2 2 2 . 2 Hottest 125 | 60 60 120 . 125 Shots Fired 52 | 8 32 4 . 8 Gun 46 | 8 32 2 . 4 Cannon 4 | . . . . 4 Launcher . | . . . . . Special 2 | . . 2 . . Kinetic 26 | 4 16 2 . 4 Thermal 6 | . . 2 . 4 Explosive . | . . . . . Electromagnetic 20 | 4 16 . . . Robot Hit Streak 13 | 2 5 . . 13 Robot Miss Streak 3 | 3 3 . . . Penetration Max . | . . . . . Secondary Targets 1 | . 1 . . . Max Gunslinging Chain 1 | . 1 . . . Shots Hit Robots 31 | 4 19 . . 8 Core Hits 19 | 3 16 . . . Critical Kills . | . . . . . Critical Parts Destroyed . | . . . . . Critical Strikes . | . . . . . Melee Attacks . | . . . . . Impact . | . . . . . Slashing . | . . . . . Piercing . | . . . . . Sneak Attacks . | . . . . . Combat Hostiles . | . . . . . Follow-up Attacks . | . . . . . Damage Inflicted 730 | 66 345 . 9 310 Guns 319 | 55 234 . . 30 Cannons 280 | . . . . 280 Explosions 94 | . 94 . . . Melee . | . . . . . Ramming 37 | 11 17 . 9 . Kinetic 118 | 16 72 . . 30 Thermal 374 | . 94 . . 280 Explosive . | . . . . . Electromagnetic 201 | 39 162 . . . Impact . | . . . . . Slashing . | . . . . . Piercing . | . . . . . Highest Corruption 1 | 1 1 1 . . Average Corruption 1 | 1 1 1 . . Corruption Purged . | . . . . . Corruption Blocked . | . . . . . Effects 2 | . 2 . . . Message Errors 1 | . 1 . . . Heat Flow Errors 1 | . 1 . . . Overload Shots 4 | . . . . 4 Effects 1 | . . . . 1 Energy Bleed 1 | . . . . 1 Overflow Damage . | . . . . . Projectiles . | . . . . . Explosions . | . . . . . Melee . | . . . . . Knockbacks . | . . . . . Impact . | . . . . . Kinetic . | . . . . . Secondary . | . . . . . Self-Inflicted Damage 46 | . 46 . . . Shots 2 | . 2 . . . Rammed 11 | 3 7 . 1 . Targets Rammed 12 | 3 8 . 1 . Kicked . | . . . . . Crushed 1 | . 1 . . . Highest Temperature 190 | 40 120 . . 190 Average Temperature 45 | 22 33 . . 98 Received Heat Transfer 267 | . 66 . 12 189 Siege Activations . | . . . . . Martial Activations . | . . . . . Shielding Activations . | . . . . . Robots Disrupted . | . . . . . Combat Hostiles . | . . . . . Robots Corrupted . | . . . . . Combat Hostiles . | . . . . . Parts Fried . | . . . . . Impact Corruptions . | . . . . . Robots Melted . | . . . . . Combat Hostiles . | . . . . . Parts Melted . | . . . . . Heat Transferred 420 | . 100 . . 320 Parts Sabotaged . | . . . . . Parts Stolen . | . . . . . Parts Stripped . | . . . . . Power Chain Reactions 2 | . 2 . . . Alert | -11 -10 -10 -8 -6 ------- Run | Yrd Mat Sub Scr Fac Maximum Alert Level . | . . . . . Low Security (%) 100 | 100 100 . . 100 Level 1 . | . . . . . Level 2 . | . . . . . Level 3 . | . . . . . Level 4 . | . . . . . Level 5 . | . . . . . High Security . | . . . . . Max Security . | . . . . . Peak Influence 150 | 5 150 . . 45 Initial . | . . . . . Average 39 | 1 75 . . . Influence Increases 264 | 10 209 . . 45 Destroy 0b10 Robot/C 80 | . 80 . . . Destroy 0b10 Robot/NC 40 | 10 30 . . . Destroy Leader 24 | . 24 . . . Successful Hack 5 | . 5 . . . Destroy Structure 10 | . 10 . . . Lose Combat Pursuer 105 | . 60 . . 45 Influence Decreases 219 | 10 100 109 . . Entered New Map 53 | . . 53 . . Time Decay 166 | 10 100 56 . . Squads Dispatched 4 | . 2 . . 2 Investigation 1 | . . . . 1 Extermination . | . . . . . Reinforcement 3 | . 2 . . 1 Assault . | . . . . . Garrison . | . . . . . Intercept . | . . . . . Searches Triggered . | . . . . . Construction Impeded . | . . . . . Haulers Reinforced . | . . . . . Active Scanning Responses . | . . . . . Cargo Convoy Interrupts . | . . . . . Stealth | -11 -10 -10 -8 -6 --------- Run | Yrd Mat Sub Scr Fac Distress Signals 1 | . 1 . . . Communications Jammed . | . . . . . Distress Signals . | . . . . . Times Spotted 28 | . 9 2 3 14 Peak Tracking Total 15 | . 6 2 3 15 Tactical Retreats 3 | . 2 . . 1 Traps | -11 -10 -10 -8 -6 ------- Run | Yrd Mat Sub Scr Fac Traps Triggered 3 | . . . . 3 Indirectly . | . . . . . Trap Hack Attempts . | . . . . . Triggered . | . . . . . Disarmed . | . . . . . Reprogrammed . | . . . . . Reused . | . . . . . Traps Extracted . | . . . . . Installed . | . . . . . Triggered . | . . . . . Machines | -11 -10 -10 -8 -6 ---------- Run | Yrd Mat Sub Scr Fac Machines Disabled . | . . . . . Max in Single Turn . | . . . . . Garrison Access 1 | . . . . 1 Machines Repaired . | . . . . . Machines Dismantled . | . . . . . Machines Sabotaged . | . . . . . Overloaded Fab Kills . | . . . . . Hacking | -11 -10 -10 -8 -6 --------- Run | Yrd Mat Sub Scr Fac Machines Accessed 3 | . 1 . 1 1 Terminals 1 | . 1 . . . Fabricators . | . . . . . Repair Stations . | . . . . . Recycling Units . | . . . . . Scanalyzers . | . . . . . Garrison Access 1 | . . . . 1 Total Hacks 5 | . 1 . 3 1 Successful 5 | . 1 . 3 1 Failed . | . . . . . Catastrophic . | . . . . . Database Lockouts . | . . . . . Manual . | . . . . . Terminals 1 | . 1 . . . Fabricators . | . . . . . Repair Stations . | . . . . . Recycling Units . | . . . . . Scanalyzers . | . . . . . Garrison Access 1 | . . . . 1 Terminal Hacks 4 | . 1 . 3 . Record 3 | . . . 3 . Zone Layout 1 | . 1 . . . Fabricator Hacks . | . . . . . Repair Station Hacks . | . . . . . Recycling Unit Hacks . | . . . . . Scanalyzer . | . . . . . Garrison Access Hacks 1 | . . . . 1 Seal Access 1 | . . . . 1 Unauthorized Hacks . | . . . . . Terminals . | . . . . . Fabricators . | . . . . . Repair Stations . | . . . . . Recycling Units . | . . . . . Scanalyzers . | . . . . . Garrison Access . | . . . . . Data Cores Recovered . | . . . . . Used . | . . . . . Hacking Detections . | . . . . . Full Trace Events . | . . . . . Feedback Events . | . . . . . Feedback Blocked . | . . . . . Robot Schematics Acquired . | . . . . . Robots Built . | . . . . . Authchips . | . . . . . Time . | . . . . . Total Robot Build Rating . | . . . . . Part Schematics Acquired . | . . . . . Parts Built . | . . . . . Authchips . | . . . . . Time . | . . . . . Total Part Build Rating . | . . . . . Part Studies Acquired . | . . . . . Parts Repaired . | . . . . . Time . | . . . . . Parts Recycled . | . . . . . Recycled Matter . | . . . . . Retrieved Matter . | . . . . . Retrieved Components . | . . . . . Parts Scanalyzed . | . . . . . Part Schematics Acquired . | . . . . . Parts Damaged . | . . . . . Bothacking | -11 -10 -10 -8 -6 ------------ Run | Yrd Mat Sub Scr Fac Used RIF Installer . | . . . . . Robots Hacked . | . . . . . Non-combat . | . . . . . Combat . | . . . . . Robot Hacks Applied . | . . . . . Relay Couplers Released . | . . . . . Fabnet Peak Effective % . | . . . . . Robots Rewired . | . . . . . Allies Hacked . | . . . . . Hacks Repelled . | . . . . . Allies | -11 -10 -10 -8 -6 -------- Run | Yrd Mat Sub Scr Fac Total Allies . | . . . . . Largest Group . | . . . . . Highest-Rated Group . | . . . . . Highest-Rated Ally . | . . . . . Initial UFD Resources 23 | . . . . 23 Total Orders . | . . . . . Ally Attacks . | . . . . . Total Damage . | . . . . . Kills . | . . . . . Allies Corrupted . | . . . . . Allies Melted . | . . . . . Intel | -11 -10 -10 -8 -6 ------- Run | Yrd Mat Sub Scr Fac Active Infowar (turns) 1747 | 6 295 241 1054 151 Seismic 1747 | 6 295 241 1054 151 Robot Analysis Total . | . . . . . Derelict Logs Recovered . | . . . . . Drone Launches . | . . . . . Drone Recoveries . | . . . . . Exploration | -11 -10 -10 -8 -6 ------------- Run | Yrd Mat Sub Scr Fac Turns Passed 1872 | 91 295 241 1054 191 Spaces Moved 1116 | 43 140 142 638 153 Core 79 | 5 . . . 74 Treads 1037 | 38 140 142 638 79 Legs . | . . . . . Wheels . | . . . . . Hover . | . . . . . Flight . | . . . . . Fastest Speed 50 | 50 160 160 160 50 Average Speed 152 | 147 160 160 160 106 Slowest Speed 160 | 160 160 160 160 160 Overloaded Moves . | . . . . . Propulsion Burnouts . | . . . . . Robots Hopped . | . . . . . Potential Cave-ins . | . . . . . Cave-ins Triggered . | . . . . . Exploration Rate (%) 19 | 3 28 13 47 7 Regions Visited 4 Branch Regions 2 Pre-discovered Areas . | . . . . . Known Exits Taken . | . . . . . Unknown Exits Taken 4 | 1 1 1 1 . Scrap Searched 2 | . . . 2 . Spaces Dug . | . . . . . Terrain Destroyed 15 | . 15 . . . Melee . | . . . . . Projectile . | . . . . . AOE 15 | . 15 . . . Terrain Rammed . | . . . . . Walls Destroyed . | . . . . . Machines Disabled . | . . . . . Actions | -11 -10 -10 -8 -6 --------- Run | Yrd Mat Sub Scr Fac Total 1232 | 58 179 147 673 175 Wait 27 | . 5 2 20 . Move 1113 | 42 139 141 638 153 Hop . | . . . . . Pick Up 19 | 1 8 . 10 . Fast Attach 11 | 7 . . . 4 Attach 4 | . . . . 4 Detach 2 | . . . . 2 Swap 5 | 1 . 2 1 1 Drop 14 | . 3 . 4 7 Fire 26 | 4 16 2 . 4 Melee . | . . . . . Ram . | . . . . . Kick . | . . . . . Crush 11 | 3 8 . . . Escape Stasis . | . . . . . Rewire . | . . . . . Trap . | . . . . . Miscellaneous . | . . . . . Route ------- -11/Scrapyard -10/Materials (discovered 2 exits: [*Min] / [*Sub]) -10/Subcaves -8/Scraptown -6/Factory History --------- Turn | Location | Event 29 | -11/Scrapyard | Discovered new exit (range 16) 92 | -11/Scrapyard | Entered Materials 93 | -10/Materials | Met a group of wandering Federalists 168 | -10/Materials | Discovered new exit (range 12) 301 | -10/Materials | Build established: Mutant 366 | -10/Materials | Discovered new exit (range 6) 387 | -10/Materials | Entered Subcaves 388 | -10/Subcaves | Continued accompanying wandering Federalists (6) 388 | -10/Subcaves | Approached by a straggling Scientist 404 | -10/Subcaves | Ambushed by Subdwellers from Twisted Machinery 616 | -10/Subcaves | Wandering Federalist uncovered a shortcut to Scraptown 620 | -10/Subcaves | Shifting Twisted Machinery released Shrapnel Trap 628 | -10/Subcaves | Entered Scraptown 628 | -8/Scraptown | System corruption cleaned by C-Scrubber 849 | -8/Scraptown | Visited UFD Registry 849 | -8/Scraptown | Registered with UFD as "Arccycle" 891 | -8/Scraptown | Visited Curators Association 945 | -8/Scraptown | Visited Science Testing Area 969 | -8/Scraptown | Visited Derelict Rescue Squad 981 | -8/Scraptown | Received an X-ray algorithm 1191 | -8/Scraptown | Visited Scrap Suit Storage 1199 | -8/Scraptown | Found Scrap Suit 1227 | -8/Scraptown | Visited Scrapoid Pod Storage 1258 | -8/Scraptown | Visited Research Penetration Think Tank 1285 | -8/Scraptown | Visited Observation Area 1312 | -8/Scraptown | Visited Botcube Research 1321 | -8/Scraptown | Found Lrg. Botcube 1381 | -8/Scraptown | Visited Abandonware Association 1398 | -8/Scraptown | Learned abandonware demo "REPAIR.EXE" 1553 | -8/Scraptown | Met Optimus 1553 | -8/Scraptown | Accepted into 0bPrime 1677 | -8/Scraptown | Civil war broke out across Scraptown 1679 | -8/Scraptown | Discovered new exit (range 3) 1682 | -8/Scraptown | Entered Factory 1682 | -6/Factory | Evolved 8 slots: Propulsion x3, Utility x5 1792 | -6/Factory | Spotted B-75 Beast 1851 | -6/Factory | Core integrity fell below 50% 1857 | -6/Factory | Core integrity fell below 20% 1868 | -6/Factory | Lost 4 parts (3u1w) 1873 | -6/Factory | Destroyed by S-27 Virus with Autogun Last Messages --------------- 01846_ S-27 Virus emerges from a hatch in the floor. 01846_ G-50 Soldier emerges from a hatch in the floor. 01846_ K-01 Serf collects debris. 01847_ C-30 ARC bursts open, deploying its payload. 01847_ H-66 Slayer unfolds itself. 01847_ Slug penetrates Wall. 01850_ Penetrated by Slug. 01851_ K-01 Serf collects debris. 01854_ Penetrated by Slug. 01857_ K-01 Serf collects debris. 01857_ Slug penetrates S-27 Virus. 01857_ Penetrated by Slug. 01862_ Slug penetrates Wall. 01870_ Triggered Alarm Trap. 01870_ An alarm sounds. 01870_ ALERT: Alarm triggered, dispatching investigation squad. Map ----- +----------------------------------------------------+ | ?????????????????????????????????????????????????? | | ?????????????????????????????????????????????????? | | ?????????????????????????????????????????????????? | | ?????????????????????????????????????????????????? | | ?????????????????????????????????????????????????? | | ?????????????????????????????????????????????????? | | ?????????????????????????????????????????????????? | | ?????????????????????????????????????????????????? | | ?????????????????????????????????????????????????? | | ?????????????????????????????????????????????????? | | ?????????????????????????????????????????????????? | | ?????????????????????????????????????????????????? | | ????????????????= ??????????????????????????????? | | ?????????? == ??????????????????????????????? | | ???????? == #?????????????????????????????? | | ??????# #?????????????????????????????? | | ??????# #?????????????????????????????? | | ??????# #????????????????????? #??????? | | ??????# #????????????????? ? ###????? | | ??????# #?????????????????"" / ?????? | | ??????# #????????????????""" #??????? | | ??????# #????????????????""" +??????? | | ??????# "" #??????????????? #??????? | | ??????#""" ###############? #??????? | | ??????#"F ! < + !!! #??????? | | ??????#""" @ # !!! #??????? | | ??????# "" + !!! #??????? | | ??????# g g # #??????? | | ??????# k s # #??????? | | ??????# ####+############+##+#? #??????? | | ??????# #?? ? ??????? ??? #??????? | | ??????# #?? """ ????? #??""" #??????? | | ??????# #? """ ??? """ #??""" #??????? | | ??????# # """ ## """"" #???"" #??????? | | ??????# " ## """"" #??? ? #??????? | | ??????# # """ ## #???????##??????? | | ??????# # """ ?????"" #???????????????? | | #+#####" # """ ??????" #???????????????? | | %" # ???????? #???????????????? | | " ########??????? #???????????????? | | #???????????????" #???????????????? | | #???????????????" #???????????????? | | #???????????????? ] #???????????????? | | #############???????????????? #???????????????? | | ????????????????????????????? ?????????????????? | | ?????????????????????????????????????????????????? | | ?????????????????????????????????????????????????? | | ?????????????????????????????????????????????????? | | "????????????????????????????????????????????????? | | "????????????????????????????????????????????????? | +----------------------------------------------------+ Best States ------------- Heat Dissipation 37 Energy Generation 10 Energy Capacity 250 Matter Stores 300 Matter Capacity 300 Sight Range 16 Terrain Scan Density 10 Armor Coverage 150 Evasion (%) 50 Recoil Reduction 3 Offensive Hacking 20 Item Schematics ----------------- None Robot Schematics ------------------ None Fabricated ------------ Nothing Repaired ---------- Nothing Studied --------- None Alien Tech Used ----------------- None Achievements -------------- None Challenges ------------ None Game ------ Seed GrapheneInertialPlateshifter Manual? 0 Play Time 00:12:38 Cumulative 232.1 hours Start 2026.09.09 @ 22:44:06 End 2026.09.09 @ 22:54:20 Sessions 1 Manual Loads 0 Difficulty Rogue Special Mode None Game No. 341 Rogue 341 Adventurer 0 Explorer 0 Win Type - Total 1 Types 1/0/0/0/0/0/0/0/0/0 Lore% 69 Gallery% 62 Achievement% 47 Wizard Run 0 Options --------- Layout 1 ASCII 0 Keyboard 1 Movement Arrows Keybinds 0 Fullscreen 1 Font 24/Smallcaps Map View 50x35 Zoom Use 0% Tactical HUD 1 Map Filters NONE Filters NONE Steam 1 RUN: 83857fa8-1d63-496a-8db9-89cb06442a66